bitfinex/quotes_ETHUSD_20250630
["timestamp","ask_amount","ask_price","bid_price","bid_amount"]
[1751302100232,4.0380403,2476.5,2476.3,0.8085]
[1751302100844,4.0380403,2476.5,2476.4,0.2016]
[1751302103650,0.8131,2476.5,2475.8,0.7809]
[1751302103952,4.03817891,2476.4,2476.3,0.2016]
[1751302107170,4.03817891,2476.4,2475.8,0.7809]
[1751302107171,4.03893533,2475.9,2475.8,0.7809]
[1751302107371,4.03893533,2475.9,2475.8,1.94121445]
[1751302108370,4.03893533,2475.9,2475.8,1.16031445]
[1751302108554,4.03893533,2475.9,2475.8,0.2016]
[1751302109354,4.03879133,2476.0,2475.7,0.2016]
[1751302109355,1.778,2476.0,2475.7,0.2016]
[1751302109549,4.0390385,2475.9,2475.7,0.2016]
[1751302109749,4.03909847,2475.8,2475.5,0.8064]
[1751302109945,4.03926162,2475.7,2475.6,0.9590524]
[1751302110164,4.03914841,2475.8,2475.7,0.2016]
[1751302112750,4.80604841,2475.8,2475.7,0.2016]
[1751302113378,14.03942478,2475.6,2475.5,0.02]
[1751302114172,4.03942478,2475.6,2475.5,0.02]
[1751302115257,5.10178726,2475.6,2475.5,0.02]
[1751302115453,5.90878726,2475.6,2475.5,0.02]
[1751302115654,15.90878726,2475.6,2475.5,0.02]
[1751302117363,17.68678726,2475.6,2475.5,0.02]
[1751302118354,5.81742478,2475.6,2475.5,0.02]
[1751302118549,4.03942478,2475.6,2475.5,0.98178634]
[1751302118774,5.81742478,2475.6,2475.5,0.98178634]
[1751302120175,4.03942478,2475.6,2475.5,0.98178634]
[1751302120582,4.03942478,2475.6,2475.5,0.02]
[1751302123176,4.03942478,2475.6,2475.5,0.2216]
[1751302124213,4.03934406,2475.7,2475.5,0.2216]
[1751302124509,4.03915872,2475.8,2475.5,0.2216]
[1751302124510,4.03919097,2475.8,2475.5,0.2216]
[1751302124711,4.03927407,2475.7,2475.6,0.2016]
[1751302125212,14.03779374,2476.6,2475.6,0.2016]
[1751302125418,4.03909847,2475.8,2475.7,0.8161]
[1751302125704,4.03909847,2475.8,2475.7,1.0177]
[1751302126402,4.03902697,2475.9,2475.7,1.0177]
[1751302126708,5.81637009,2476.3,2475.7,1.0177]
[1751302126909,4.03904577,2475.9,2475.7,1.0177]
[1751302127116,4.03904577,2475.9,2475.7,0.8161]
[1751302127279,4.03904577,2475.9,2475.8,0.2016]
[1751302128601,4.03904577,2475.9,2475.8,1.16509691]
[1751302129902,4.79824577,2475.9,2475.8,1.16509691]
[1751302130822,4.03904577,2475.9,2475.8,1.16509691]
[1751302131893,4.03904577,2475.9,2475.8,0.2016]
[1751302132081,4.03904577,2475.9,2475.8,1.16605494]
[1751302132282,4.03893533,2475.9,2475.8,0.2016]
[1751302132511,4.03893533,2475.9,2475.8,1.16597517]
[1751302134214,5.61602155,2475.9,2475.8,0.96437517]
[1751302134715,7.01602155,2475.9,2475.8,0.96437517]
[1751302134936,8.77502155,2475.9,2475.8,0.96437517]
[1751302135236,7.01602155,2475.9,2475.8,0.96437517]
[1751302135409,5.43893533,2475.9,2475.8,0.96437517]
[1751302136539,5.43893533,2475.9,2475.8,1.16597517]
[1751302140243,1.4,2475.9,2475.8,1.16597517]
[1751302140441,5.43893533,2475.9,2475.8,2.36638425]
[1751302140811,5.43893533,2475.9,2475.8,1.16597517]
[1751302141510,6.46645822,2475.9,2475.8,1.16597517]
[1751302141911,6.46645822,2475.9,2475.8,0.96437517]
[1751302142321,7.19793533,2475.9,2475.8,0.96437517]
[1751302142523,5.43893533,2475.9,2475.8,1.16597517]
[1751302143437,5.43893533,2475.9,2475.8,1.95387517]
[1751302144007,1.4,2475.9,2475.8,1.95387517]
[1751302144409,5.43893533,2475.9,2475.8,1.95387517]
[1751302144654,5.43893533,2475.9,2475.8,2.2693036]
[1751302144655,1.4,2475.9,2475.8,2.2693036]
[1751302145112,1.4,2475.9,2475.8,3.46971268]
[1751302145542,1.4,2475.9,2475.8,7.50881115]
[1751302146045,1.4,2475.9,2475.8,3.46971268]
[1751302147142,1.4,2475.9,2475.8,2.36638425]
[1751302147143,5.43893533,2475.9,2475.8,2.36638425]
[1751302147330,5.43893533,2475.9,2475.8,1.16597517]
[1751302150947,6.22723533,2475.9,2475.8,1.16597517]
[1751302152318,5.43893533,2475.9,2475.8,1.16597517]
[1751302155144,1.4,2475.9,2475.8,1.96227517]
[1751302155335,1.4,2475.9,2475.8,2.31845911]
[1751302156042,1.4,2475.9,2475.8,3.91802332]
[1751302157825,5.43893533,2475.9,2475.8,3.91802332]
[1751302158025,5.43893533,2475.9,2475.8,1.96227517]
[1751302158753,5.43893533,2475.9,2475.8,2.37414783]
[1751302159876,1.4,2475.9,2475.8,2.37414783]
[1751302160385,1.4,2475.9,2475.8,1.96647517]
[1751302161755,1.4,2475.9,2475.8,3.56603938]
[1751302161963,1.4,2475.9,2475.8,8.07632362]
[1751302162270,1.4,2475.9,2475.8,10.48023735]
[1751302162489,1.4,2475.9,2475.8,8.07632362]
[1751302162764,1.4,2475.9,2475.8,10.48023735]
[1751302163640,1.4,2475.9,2475.8,8.07632362]
[1751302164141,1.4,2475.9,2475.8,8.62632362]
[1751302164329,1.4,2475.9,2475.8,4.58722515]
[1751302164732,1.4,2475.9,2475.8,8.62632362]
[1751302165135,1.4,2475.9,2475.8,4.58722515]
[1751302167139,1.4,2475.9,2475.8,6.19567569]
[1751302169650,5.43893533,2475.9,2475.8,16.19567569]
[1751302169851,1.4,2475.9,2475.8,16.19567569]
[1751302170775,5.43893533,2475.9,2475.8,16.19567569]
[1751302170984,1.4,2475.9,2475.8,16.19567569]
[1751302171469,5.43893533,2475.9,2475.8,15.64567569]
[1751302171676,5.43893533,2475.9,2475.8,12.77442571]
[1751302173745,5.43893533,2475.9,2475.8,19.42742571]
[1751302175079,5.43893533,2475.9,2475.8,1.16597517]
[1751302175247,5.43893533,2475.9,2475.8,9.02559324]
[1751302175449,5.43893533,2475.9,2475.8,7.81897517]
[1751302176090,5.43893533,2475.9,2475.8,9.02559324]
[1751302176261,6.23513533,2475.9,2475.8,2.37259324]
[1751302176459,6.23513533,2475.9,2475.8,9.02559324]
[1751302177749,5.43893533,2475.9,2475.8,9.02559324]
[1751302177950,5.43893533,2475.9,2475.8,1.16597517]
[1751302178149,5.43893533,2475.9,2475.8,9.42642571]
[1751302178471,1.4,2475.9,2475.8,9.42642571]
[1751302178675,1.4,2475.9,2475.8,12.00647965]
[1751302178974,1.4,2475.9,2475.8,22.80194284]
[1751302179175,1.4,2475.9,2475.8,26.84104131]
[1751302179890,1.4,2475.9,2475.8,24.43712758]
[1751302180393,4.03802994,2476.5,2475.9,4.03883999]
[1751302180394,4.03820795,2476.4,2475.9,4.03883999]
[1751302180564,4.03804502,2476.5,2476.3,1.20621044]
[1751302180765,4.03804502,2476.5,2476.4,7.61737517]
[1751302182085,4.03804502,2476.5,2476.4,0.96437517]
[1751302183010,4.84514502,2476.5,2476.4,0.96437517]
[1751302183691,5.90804029,2476.5,2476.4,0.96437517]
[1751302186272,4.85217221,2476.0,2475.9,1.40781044]
[1751302186473,4.85217221,2476.0,2475.9,1.16745117]
[1751302188303,4.85217221,2476.0,2475.9,0.96585117]
[1751302189303,4.03877221,2476.0,2475.9,1.16745117]
[1751302191105,4.03877221,2476.0,2475.9,2.37366161]
[1751302192312,4.03877221,2476.0,2475.9,1.16745117]
[1751302192515,4.03877221,2476.0,2475.9,0.96585117]
[1751302193223,5.75470411,2476.0,2475.9,0.96585117]
[1751302193387,4.86822478,2475.6,2475.5,1.42781044]
[1751302193716,4.86822478,2475.6,2475.5,0.98607304]
[1751302194101,4.86822478,2475.6,2475.5,0.02]
[1751302194322,6.4241774,2475.6,2475.5,0.02]
[1751302195727,6.4264774,2475.6,2475.5,0.02]
[1751302201944,10.4264774,2475.6,2475.5,0.02]
[1751302202494,20.4264774,2475.6,2475.5,0.02]
[1751302202640,28.8214774,2475.6,2475.5,0.02]
[1751302206172,39.98753348,2475.6,2475.5,0.02]
[1751302206470,40.53753348,2475.6,2475.5,0.02]
[1751302206961,40.74389051,2475.6,2475.5,0.02]
[1751302207328,44.99889051,2475.6,2475.5,0.02]
[1751302207849,44.79253348,2475.6,2475.5,0.02]
[1751302208165,35.84753348,2475.6,2475.5,0.02]
[1751302208459,44.24353348,2475.6,2475.5,0.02]
[1751302210557,44.79353348,2475.6,2475.5,0.02]
[1751302214539,4.04105714,2474.6,2474.5,0.02]
[1751302218984,21.49885714,2474.6,2474.5,0.02]
[1751302219270,25.75385714,2474.6,2474.5,0.02]
[1751302219445,26.30385714,2474.6,2474.5,0.02]
[1751302219958,40.31415929,2474.6,2474.5,0.02]
[1751302220169,41.20129119,2474.6,2474.5,0.02]
[1751302221475,34.54729119,2474.6,2474.5,0.02]
[1751302221689,42.94429119,2474.6,2474.5,0.02]
[1751302222449,50.86429119,2474.6,2474.5,0.02]
[1751302222668,4.04269081,2473.6,2473.5,0.02]
[1751302222883,4.04269081,2473.6,2473.5,0.98587141]
[1751302224584,4.04269081,2473.6,2473.5,0.02]
[1751302228096,14.04269081,2473.6,2473.5,0.02]
[1751302228403,16.75203086,2473.6,2473.5,0.02]
[1751302228770,21.00703086,2473.6,2473.5,0.02]
[1751302229099,22.56298348,2473.6,2473.5,0.02]
[1751302232188,30.95998348,2473.6,2473.5,0.02]
[1751302232395,26.70498348,2473.6,2473.5,0.02]
[1751302232708,18.30798348,2473.6,2473.5,0.02]
[1751302232874,26.70498348,2473.6,2473.5,0.02]
[1751302233895,26.15598348,2473.6,2473.5,0.02]
[1751302234084,9.49998348,2473.6,2473.5,0.02]
[1751302234285,7.16243086,2473.6,2473.5,0.02]
[1751302234489,23.81843086,2473.6,2473.5,0.02]
[1751302234810,24.58773086,2473.6,2473.5,0.02]
[1751302238075,23.81843086,2473.6,2473.5,0.02]
[1751302241928,23.80771748,2473.6,2473.5,0.02]
[1751302242123,26.10276805,2473.6,2473.5,0.02]
[1751302242626,26.91656805,2473.6,2473.5,0.02]
[1751302242927,31.72156805,2473.6,2473.5,0.02]
[1751302243231,32.20145055,2473.6,2473.5,0.02]
[1751302243612,18.29785425,2473.5,2473.4,0.02]
[1751302243833,62.19472473,2473.5,2473.4,0.02]
[1751302243996,63.60167552,2473.5,2473.4,0.02]
[1751302245525,29.80473694,2473.5,2473.4,0.02]
[1751302247225,17.15073694,2473.5,2473.4,0.02]
[1751302247621,24.73593694,2473.5,2473.4,0.02]
[1751302250202,17.10823694,2473.5,2473.4,0.02]
[1751302250407,25.50723694,2473.5,2473.4,0.02]
[1751302251100,17.10823694,2473.5,2473.4,0.02]
[1751302251307,24.74593694,2473.5,2473.4,0.02]
[1751302254934,16.34693694,2473.5,2473.4,0.02]
[1751302255149,17.20080504,2473.5,2473.4,0.02]
[1751302255352,23.85580504,2473.5,2473.4,0.02]
[1751302255851,17.20080504,2473.5,2473.4,0.02]
[1751302256039,23.85580504,2473.5,2473.4,0.02]
[1751302267866,31.18986817,2473.5,2473.4,0.02]
[1751302269654,66.78306817,2473.5,2473.4,0.02]
[1751302269865,18.84834465,2473.2,2473.1,0.02]
[1751302270067,32.83640778,2473.2,2473.1,0.02]
[1751302270368,34.16526449,2473.2,2473.1,0.02]
[1751302271866,26.83120136,2473.2,2473.1,0.02]
[1751302272838,27.64250136,2473.2,2473.1,0.02]
[1751302273271,20.98850136,2473.2,2473.1,0.02]
[1751302273565,29.38350136,2473.2,2473.1,0.02]
[1751302274974,29.68728052,2473.2,2473.1,0.02]
[1751302278478,21.29228052,2473.2,2473.1,0.02]
[1751302278678,29.68728052,2473.2,2473.1,0.02]
[1751302280764,21.29228052,2473.2,2473.1,0.02]
[1751302280981,29.68728052,2473.2,2473.1,0.02]
[1751302281794,17.92450136,2473.2,2473.1,0.02]
[1751302281956,23.76720136,2473.2,2473.1,0.02]
[1751302283070,27.76720136,2473.2,2473.1,0.02]
[1751302285196,43.77742825,2473.2,2473.1,0.02]
[1751302289201,38.97242825,2473.2,2473.1,0.02]
[1751302289410,27.76720136,2473.2,2473.1,0.02]
[1751302290092,28.31420136,2473.2,2473.1,0.02]
[1751302290299,32.56920136,2473.2,2473.1,0.02]
[1751302290516,33.80068386,2473.2,2473.1,0.02]
[1751302290881,64.2757851,2473.2,2473.1,0.02]
[1751302291074,18.29850814,2473.1,2473.0,0.02]
[1751302291278,65.22311877,2473.1,2473.0,0.02]
[1751302291475,66.56226923,2473.1,2473.0,0.02]
[1751302291898,62.69697231,2473.1,2473.0,0.02]
[1751302292103,41.08897231,2473.1,2473.0,0.02]
[1751302292796,40.61487107,2473.1,2473.0,0.02]
[1751302293194,70.61487107,2473.1,2473.0,0.02]
[1751302294179,18.84883517,2472.9,2472.8,0.02]
[1751302294409,26.32923517,2472.9,2472.8,0.02]
[1751302294686,27.66113409,2472.9,2472.8,0.02]
[1751302300393,15.37573409,2472.9,2472.8,0.02]
[1751302300931,23.76773409,2472.9,2472.8,0.02]
[1751302301904,15.37573409,2472.9,2472.8,0.02]
[1751302302108,15.37573409,2472.9,2472.8,0.7931]
[1751302302299,23.76773409,2472.9,2472.8,0.7931]
[1751302303230,17.11573409,2472.9,2472.8,0.7931]
[1751302303431,5.37573409,2472.9,2472.8,0.7931]
[1751302303734,5.37573409,2472.9,2472.8,0.9947]
[1751302306604,5.37573409,2472.9,2472.8,1.96392499]
[1751302306996,5.37573409,2472.9,2472.8,2.28093853]
[1751302313340,5.37573409,2472.9,2472.8,1.96392499]
[1751302313540,5.37573409,2472.9,2472.8,0.9947]
[1751302314318,5.37573409,2472.9,2472.8,0.02]
[1751302315931,13.76173409,2472.9,2472.8,0.02]
[1751302316168,5.37573409,2472.9,2472.8,0.814]
[1751302316332,7.11273409,2472.9,2472.8,0.814]
[1751302317654,7.11273409,2472.9,2472.8,1.0156]
[1751302320372,5.37573409,2472.9,2472.8,1.0156]
[1751302321377,7.15817646,2472.9,2472.8,0.02]
[1751302322166,13.80517646,2472.9,2472.8,0.02]
[1751302326689,14.63137646,2472.9,2472.8,0.02]
[1751302326903,31.97130643,2472.9,2472.8,0.02]
[1751302327054,25.32430643,2472.9,2472.8,0.02]
[1751302327254,33.70830643,2472.9,2472.8,0.02]
[1751302328004,25.54217646,2472.9,2472.8,0.02]
[1751302329682,17.15817646,2472.9,2472.8,0.02]
[1751302329991,25.54217646,2472.9,2472.8,0.02]
[1751302330317,17.15817646,2472.9,2472.8,0.02]
[1751302330603,25.54217646,2472.9,2472.8,0.02]
[1751302330919,33.65050643,2472.9,2472.8,0.02]
[1751302331779,38.46250643,2472.9,2472.8,0.02]
[1751302332271,19.66357646,2472.9,2472.8,0.02]
[1751302332475,7.11273409,2472.9,2472.8,0.02]
[1751302332893,13.75873409,2472.9,2472.8,0.02]
[1751302333310,7.11273409,2472.9,2472.8,0.02]
[1751302334434,5.37573409,2472.9,2472.8,0.02]
[1751302337802,5.37573409,2472.9,2472.8,0.9953]
[1751302340515,5.37573409,2472.9,2472.8,1.96466094]
[1751302340820,1.33189892,2472.9,2472.8,1.96466094]
[1751302341188,1.33189892,2472.9,2472.8,2.28174808]
[1751302342009,1.33189892,2472.9,2472.8,4.03795852]
[1751302342605,1.33189892,2472.9,2472.8,8.08195722]
[1751302342784,1.33189892,2472.9,2472.8,4.03795852]
[1751302342990,1.33189892,2472.9,2472.8,4.44002867]
[1751302343509,1.33189892,2472.9,2472.8,8.48402737]
[1751302343712,1.33189892,2472.9,2472.8,18.48402737]
[1751302343888,0.01,2473.0,2472.9,14.85883517]
[1751302344077,0.01,2473.0,2472.9,19.06035624]
[1751302344715,0.01,2473.0,2472.9,15.01652107]
[1751302345291,0.01,2473.0,2472.9,16.62880241]
[1751302346015,0.01,2473.0,2472.9,20.67263758]
[1751302348304,0.01,2473.0,2472.9,19.06035624]
[1751302349050,0.01,2473.0,2472.9,27.31563758]
[1751302349327,0.01,2473.0,2472.9,25.70335624]
[1751302350020,0.01,2473.0,2472.9,21.65952107]
[1751302351933,0.01,2473.0,2472.9,25.70335624]
[1751302352313,0.01,2473.0,2472.9,33.04328621]
[1751302353322,0.01,2473.0,2472.9,34.65556755]
[1751302353632,0.01,2473.0,2472.9,35.20556755]
[1751302354007,0.01,2473.0,2472.9,33.59328621]
[1751302354231,0.01,2473.0,2472.9,35.20055819]
[1751302356352,0.01,2473.0,2472.9,35.22055819]
[1751302357221,0.01,2473.1,2473.0,15.35217165]
[1751302357450,0.01,2473.1,2473.0,21.9412524]
[1751302357648,0.01,2473.1,2473.0,20.53645683]
[1751302359548,0.01,2473.3,2473.2,4.59334465]
[1751302359758,0.01,2473.5,2473.4,14.5930177]
[1751302359971,0.01,2474.0,2473.9,22.71823054]
[1751302360134,0.01,2474.0,2473.9,31.53028152]
[1751302360339,0.01,2474.0,2473.9,31.73188152]
[1751302360546,0.01,2474.0,2473.9,30.52819148]
[1751302360747,0.01,2474.0,2473.9,32.13311154]
[1751302360947,0.01,2474.0,2473.9,36.14643578]
[1751302361469,0.01,2474.0,2473.9,34.54151572]
[1751302361680,0.01,2474.0,2473.9,36.14643578]
[1751302361844,0.01,2474.0,2473.9,36.45354097]
[1751302362329,0.01,2474.5,2474.2,4.59171045]
[1751302362533,0.01,2474.5,2474.2,22.39277612]
[1751302365034,0.01,2474.5,2474.2,32.39277612]
[1751302365366,0.01,2474.5,2474.2,33.59429611]
[1751302366971,0.01,2474.5,2474.2,26.95629611]
[1751302367157,0.01,2474.5,2474.2,35.32529611]
[1751302367355,0.01,2474.5,2474.2,34.12377612]
[1751302368578,0.01,2474.5,2474.2,35.72869618]
[1751302369074,0.01,2474.5,2474.2,25.05098573]
[1751302369281,0.01,2474.5,2474.2,22.76798573]
[1751302369474,0.01,2474.5,2474.2,21.16306567]
[1751302369767,4.0512448,2474.5,2474.2,24.64636689]
[1751302369982,4.0515471,2474.3,2474.2,6.75643692]
[1751302370183,4.0515471,2474.3,2474.2,12.07806216]
[1751302371159,0.01,2474.3,2474.2,12.07806216]
[1751302371490,4.0515471,2474.3,2474.2,5.44306216]
[1751302371670,4.0515471,2474.3,2474.2,11.28926216]
[1751302372290,4.0515471,2474.3,2474.2,4.65426216]
[1751302372482,4.0515471,2474.3,2474.2,10.73926216]
[1751302372786,4.0515471,2474.3,2474.2,9.53896094]
[1751302374089,0.01,2474.3,2474.2,10.08896094]
[1751302374275,0.01,2474.3,2474.2,30.78103835]
[1751302374481,0.01,2474.3,2474.2,29.58073713]
[1751302375267,0.01,2474.3,2474.2,35.6378488]
[1751302375593,0.01,2474.3,2474.2,35.63983156]
[1751302376058,0.01,2474.3,2474.2,22.02783713]
[1751302376264,0.01,2474.3,2474.2,28.23999091]
[1751302377392,0.01,2474.3,2474.2,32.28170136]
[1751302377689,0.01,2474.3,2474.2,33.48398534]
[1751302378361,0.01,2474.3,2474.2,32.28170136]
[1751302378862,0.01,2474.3,2474.2,33.48511712]
[1751302379063,0.01,2474.3,2474.2,37.39830445]
[1751302379284,0.01,2474.3,2474.2,36.19488869]
[1751302379884,0.01,2474.3,2474.2,37.79980875]
[1751302381300,0.01,2474.3,2474.2,29.43580875]
[1751302381502,0.01,2474.3,2474.2,37.79880875]
[1751302381703,0.01,2474.3,2474.2,36.19388869]
[1751302381868,0.01,2474.3,2474.2,37.79880875]
[1751302382495,0.01,2474.3,2474.2,33.7570983]
[1751302382709,0.01,2474.3,2474.2,23.44714827]
[1751302382870,0.01,2474.3,2474.2,20.73908283]
[1751302383068,0.01,2474.3,2474.2,20.08396094]
[1751302383272,0.01,2474.3,2474.2,25.33106624]
[1751302383598,0.01,2474.3,2474.2,20.08396094]
[1751302383803,0.01,2474.3,2474.2,21.28950435]
[1751302383999,0.01,2474.3,2474.2,24.71713361]
[1751302384393,0.01,2474.3,2474.2,16.8785902]
[1751302384593,0.01,2474.3,2474.2,23.5105902]
[1751302385300,0.01,2474.3,2474.2,29.93962071]
[1751302385602,0.01,2474.3,2474.2,28.33470065]
[1751302386308,0.01,2474.3,2474.2,30.74712153]
[1751302387697,0.01,2474.3,2474.2,28.33470065]
[1751302389397,0.01,2474.5,2474.4,12.74571373]
[1751302389610,0.01,2474.5,2474.4,24.35939891]
[1751302389907,0.01,2474.5,2474.4,24.56099891]
[1751302390902,0.01,2474.5,2474.4,18.95106894]
[1751302393002,0.01,2474.5,2474.4,14.90968518]
[1751302393219,0.01,2474.5,2474.4,24.09528518]
[1751302393379,0.01,2474.5,2474.4,28.13666894]
[1751302393795,0.01,2474.5,2474.4,28.13566894]
[1751302396414,0.01,2474.5,2474.4,19.77566894]
[1751302396719,0.01,2474.5,2474.4,28.13566894]
[1751302397984,0.01,2474.5,2474.4,21.50566894]
[1751302398184,0.01,2474.5,2474.4,15.18428518]
[1751302398419,0.01,2474.5,2474.4,23.5723447]
[1751302398721,0.01,2474.5,2474.4,24.1223447]
[1751302399234,0.01,2474.5,2474.4,24.9158447]
[1751302399998,0.7806,2475.1,2474.8,14.5906681]
[1751302400202,4.04008358,2475.2,2474.9,18.28205844]
[1751302400390,0.8427,2475.3,2475.1,1.2101269]
[1751302400591,0.8427,2475.3,2475.2,7.59836094]
[1751302400791,4.88261435,2475.3,2475.2,7.79996094]
[1751302403036,0.8427,2475.3,2475.2,7.79996094]
[1751302403223,0.01,2475.3,2475.2,7.79996094]
[1751302403427,0.01,2475.3,2475.2,11.35522165]
[1751302406242,4.04991435,2475.3,2475.2,11.35522165]
[1751302406665,4.04991435,2475.3,2475.2,10.14509475]
[1751302406874,0.01,2475.3,2475.2,10.14509475]
[1751302407008,0.01,2475.3,2475.2,10.1422152]
[1751302407211,0.01,2475.3,2475.2,11.35031694]
[1751302409004,4.04991435,2475.3,2475.2,3.5132152]
[1751302409212,4.04991435,2475.3,2475.2,9.55256589]
[1751302410554,4.04991435,2475.3,2475.2,2.92556589]
[1751302410852,0.01,2475.3,2475.2,9.55256589]
[1751302414357,0.01,2475.3,2475.2,13.59264345]
[1751302414554,0.01,2475.3,2475.2,14.40134345]
[1751302414854,0.01,2475.3,2475.2,26.43481316]
[1751302415023,0.01,2475.3,2475.2,28.04858069]
[1751302417333,0.01,2475.3,2475.2,26.43481316]
[1751302418058,0.01,2475.3,2475.2,26.73456449]
[1751302422056,0.01,2475.3,2475.2,22.69448693]
[1751302422549,0.01,2475.3,2475.2,28.34452665]
[1751302422751,0.01,2475.3,2475.2,17.67744909]
[1751302422939,0.01,2475.3,2475.2,26.02844909]
[1751302423139,0.01,2475.3,2475.2,24.41848693]
[1751302423328,0.01,2475.3,2475.2,15.7677356]
[1751302423536,0.01,2475.3,2475.2,25.72799057]
[1751302424151,0.01,2475.3,2475.2,24.1177356]
[1751302424563,0.01,2475.3,2475.2,26.5383869]
[1751302424769,0.01,2475.3,2475.2,25.7296869]
[1751302424966,0.01,2475.3,2475.2,23.3090356]
[1751302425940,0.01,2475.3,2475.2,27.34911316]
[1751302426160,0.01,2475.3,2475.2,28.12731316]
[1751302430455,0.01,2475.3,2475.2,28.42549285]
[1751302431252,0.01,2475.3,2475.2,16.03541529]
[1751302431458,0.01,2475.3,2475.2,11.16808139]
[1751302431666,4.04991435,2475.3,2475.2,19.40001556]
[1751302432085,4.04991435,2475.3,2475.2,1.16808139]
[1751302432253,4.85141435,2475.3,2475.2,2.37656739]
[1751302432597,4.85141435,2475.3,2475.2,7.78908139]
[1751302432598,5.74153208,2475.3,2475.2,7.78908139]
[1751302432967,4.85141435,2475.3,2475.2,7.78908139]
[1751302434195,4.85141435,2475.3,2475.2,1.16808139]
[1751302434363,4.85141435,2475.3,2475.2,7.78908139]
[1751302434862,4.85141435,2475.3,2475.2,1.16808139]
[1751302435059,4.85141435,2475.3,2475.2,7.78908139]
[1751302439517,4.85141435,2475.3,2475.2,1.16808139]
[1751302439720,4.85141435,2475.3,2475.2,7.78908139]
[1751302440110,4.85141435,2475.3,2475.2,7.78865436]
[1751302440498,4.85141435,2475.3,2475.2,6.8226]
[1751302440725,5.74153208,2475.3,2475.2,6.8226]
[1751302441416,4.85141435,2475.3,2475.2,6.8226]
[1751302448144,4.04991435,2475.3,2475.2,1.16753566]
[1751302448328,0.01,2475.3,2475.2,1.71753566]
[1751302449034,0.01,2475.3,2475.2,5.75761322]
[1751302449237,0.01,2475.3,2475.2,18.61508982]
[1751302449439,0.01,2475.3,2475.2,14.57501226]
[1751302449750,0.01,2475.3,2475.2,16.18594643]
[1751302454761,0.01,2475.3,2475.2,14.57501226]
[1751302455469,0.01,2475.3,2475.2,16.18594643]
[1751302456685,0.01,2475.3,2475.2,22.80494643]
[1751302457234,4.04991435,2475.3,2475.2,22.25494643]
[1751302457532,0.01,2475.3,2475.2,22.25494643]
[1751302459271,4.04991435,2475.3,2475.2,22.25494643]
[1751302459494,4.04991435,2475.3,2475.2,12.77846983]
[1751302459690,4.04991435,2475.3,2475.2,18.99426413]
[1751302463367,4.04991435,2475.3,2475.2,17.78553566]
[1751302463984,0.01,2475.3,2475.2,17.78553566]
[1751302465100,4.04991435,2475.3,2475.2,17.78553566]
[1751302465297,4.04991435,2475.3,2475.2,20.70077135]
[1751302465473,0.01,2475.3,2475.2,22.31170552]
[1751302472604,0.01,2475.3,2475.2,25.29084891]
[1751302474032,0.01,2475.3,2475.2,27.70680602]
[1751302476618,0.01,2476.3,2475.3,10.55]
[1751302476817,4.78873278,2477.3,2476.7,1.3705]
[1751302477138,4.78873278,2477.3,2477.0,7.33992997]
[1751302477139,4.78872571,2477.3,2477.0,7.33992997]
[1751302477330,4.78872571,2477.3,2477.2,0.2016]
[1751302477907,4.03730716,2476.9,2476.6,12.271]
[1751302478240,4.03706051,2477.1,2476.7,6.646]
[1751302478440,4.03706051,2477.1,2476.8,0.2016]
[1751302478734,4.03706051,2477.1,2477.0,0.2016]
[1751302478938,4.03706051,2477.1,2477.0,6.8466]
[1751302480423,4.03689492,2477.2,2477.0,6.8466]
[1751302480644,4.03697872,2477.1,2477.0,6.8466]
[1751302480955,4.84697872,2477.1,2477.0,6.8446]
[1751302481534,4.84697872,2477.1,2477.0,0.2016]
[1751302483338,4.84697872,2477.1,2477.0,1.16759259]
[1751302483538,4.84697872,2477.1,2477.0,0.2016]
[1751302484062,4.85697872,2477.1,2477.0,0.2016]
[1751302486026,5.74636044,2477.1,2477.0,0.2016]
[1751302486265,4.03730469,2476.9,2476.8,6.635]
[1751302487246,4.03724102,2477.0,2476.8,6.635]
[1751302487456,4.03724102,2477.0,2476.9,0.2016]
[1751302488861,0.82,2477.1,2476.9,0.2016]
[1751302488862,0.01,2477.1,2476.9,0.2016]
[1751302489073,0.01,2477.1,2476.9,0.88526]
[1751302489235,4.04711519,2477.1,2476.9,0.88526]
[1751302490774,0.01,2477.1,2476.9,0.88526]
[1751302491141,0.01,2477.1,2477.0,0.8241]
[1751302492337,0.01,2477.1,2477.0,5.4112417]
[1751302492540,0.01,2477.1,2477.0,7.43838487]
[1751302493248,0.01,2477.1,2477.0,7.74233816]
[1751302496964,0.01,2477.1,2477.0,8.11807864]
[1751302501061,0.01,2477.1,2477.0,18.11807864]
[1751302501498,0.01,2478.1,2477.7,4.03599397]
[1751302501697,0.01,2478.1,2478.0,0.2016]
[1751302504722,4.80324966,2478.1,2478.0,0.2016]
[1751302504886,4.80324966,2478.1,2478.0,6.8236]
[1751302507134,4.80324966,2478.1,2478.0,0.2016]
[1751302507807,4.03621105,2477.6,2477.3,0.7521]
[1751302508030,4.03621105,2477.6,2477.4,9.79844202]
[1751302508230,4.03589078,2477.8,2477.5,0.2016]
[1751302508408,4.03576533,2477.9,2477.5,0.2016]
[1751302508608,4.03576533,2477.9,2477.8,0.2016]
[1751302508811,4.03576533,2477.9,2477.8,6.8216]
[1751302510544,4.79986533,2477.9,2477.8,0.2016]
[1751302510954,4.03576533,2477.9,2477.8,0.2016]
[1751302511116,0.01,2478.1,2477.8,0.88366]
[1751302511321,4.03551753,2478.0,2477.8,0.88366]
[1751302511650,4.03551753,2478.0,2477.8,0.68206]
[1751302511866,4.03551753,2478.0,2477.9,0.2016]
[1751302513152,0.01,2478.1,2477.9,0.2016]
[1751302513352,0.01,2478.1,2478.0,1.727]
[1751302514618,0.01,2478.1,2478.0,2.277]
[1751302515039,0.01,2478.1,2478.0,6.31251251]
[1751302515239,0.01,2478.1,2478.0,12.94051251]
[1751302515446,0.01,2478.1,2478.0,22.94051251]
[1751302515716,0.01,2478.1,2478.0,22.62353378]
[1751302516460,4.04534966,2478.1,2478.0,12.62353378]